bitfinex/quotes_SOLUSD_20260220
["timestamp","ask_amount","ask_price","bid_price","bid_amount"]
[1771618475418,3.94466831,85.289,85.263,4.25652602]
[1771618476019,3.94466831,85.289,85.252,4.25652602]
[1771618476627,3.94466831,85.279,85.252,4.25652602]
[1771618477409,11.82205323,85.31,85.272,4.04833138]
[1771618477608,0.1,85.31,85.281,4.04833138]
[1771618478530,11.72209262,85.309,85.281,4.04833138]
[1771618479630,0.1,85.31,85.291,4.04833138]
[1771618482505,0.1,85.31,85.293,4.04833138]
[1771618493147,0.1,85.31,85.28,4.04833138]
[1771618493345,4.3288417,85.31,85.271,4.04833138]
[1771618493742,4.04052199,85.309,85.271,4.04833138]
[1771618496446,4.04052199,85.307,85.271,4.04833138]
[1771618498440,4.04052199,85.299,85.263,4.04833138]
[1771618500146,4.04052199,85.297,85.263,4.04833138]
[1771618500352,4.04052199,85.289,85.241,4.04833138]
[1771618501157,4.04052199,85.279,85.241,4.04833138]
[1771618501952,4.04052199,85.259,85.229,4.04833138]
[1771618502156,11.7291046,85.258,85.229,4.04833138]
[1771618502357,4.04052199,85.257,85.229,4.04833138]
[1771618502741,11.7291046,85.258,85.23,8.27636097]
[1771618502946,11.7291046,85.258,85.231,4.04833138]
[1771618503142,11.72801002,85.266,85.24,4.22802959]
[1771618503347,0.1,85.31,85.251,4.04833138]
[1771618503348,4.04052199,85.289,85.251,4.04833138]
[1771618504554,4.04052199,85.288,85.251,4.04833138]
[1771618504756,4.04052199,85.288,85.253,4.04833138]
[1771618506050,4.04052199,85.279,85.247,4.04833138]
[1771618506354,4.04052199,85.279,85.23,4.22802959]
[1771618506557,4.04052199,85.269,85.233,4.04833138]
[1771618507262,41.03790729,85.287,85.226,4.16964704]
[1771618507263,4.16376951,85.259,85.226,4.16964704]
[1771618507564,4.16476483,85.249,85.212,4.16964704]
[1771618508261,4.16476483,85.247,85.214,4.16964704]
[1771618509159,29.32048297,85.265,85.214,4.16964704]
[1771618509366,29.32048297,85.265,85.213,41.07354511]
[1771618509367,4.16574392,85.259,85.221,4.16964704]
[1771618509553,11.72739745,85.271,85.241,4.16964704]
[1771618510160,4.16669946,85.276,85.241,4.16964704]
[1771618511149,4.16762198,85.269,85.235,4.16964704]
[1771618512457,11.72772904,85.268,85.237,4.16964704]
[1771618513564,4.17039213,85.267,85.237,4.16964704]
[1771618514462,4.17130581,85.265,85.237,4.16964704]
[1771618515353,4.17130581,85.259,85.23,4.16964704]
[1771618516867,11.7291046,85.258,85.23,15.90260491]
[1771618517171,4.1731223,85.257,85.23,4.16964704]
[1771618517347,4.1731223,85.257,85.221,4.16964704]
[1771618517541,41.0518661,85.258,85.204,4.16964704]
[1771618517542,4.17401643,85.239,85.204,4.16964704]
[1771618518749,11.73185668,85.238,85.205,11.73640044]
[1771618518954,4.17490318,85.237,85.206,4.16964704]
[1771618520951,4.17664681,85.235,85.206,4.16964704]
[1771618521365,4.17750332,85.219,85.18,11.73984503]
[1771618521550,4.17750332,85.219,85.181,4.16964704]
[1771618523274,11.73461005,85.218,85.183,4.16964704]
[1771618524463,4.18002535,85.217,85.183,4.16964704]
[1771618524666,4.18002535,85.199,85.17,0.2]
[1771618525571,4.18086965,85.197,85.17,0.2]
[1771618525758,4.18086965,85.197,85.17,4.36964704]
[1771618525958,4.18086965,85.197,85.171,11.74108558]
[1771618526775,4.18086965,85.197,85.17,4.36964704]
[1771618527476,11.33527389,85.19,85.17,0.2]
[1771618527682,4.18257801,85.179,85.156,4.16964704]
[1771618529178,11.74012068,85.178,85.156,4.16964704]
[1771618530462,58.68091634,85.207,85.15,11.94387204]
[1771618530463,11.73736472,85.198,85.161,4.16964704]
[1771618530884,4.18506469,85.189,85.161,4.16964704]
[1771618532383,4.18506469,85.189,85.156,11.74301818]
[1771618532384,11.73860474,85.189,85.163,4.16964704]
[1771618532971,11.73801861,85.194,85.163,4.16964704]
[1771618534469,11.73722696,85.199,85.165,4.16964704]
[1771618534969,11.73584949,85.209,85.171,4.16964704]
[1771618535185,41.07547323,85.209,85.171,4.16964704]
[1771618535496,4.18889363,85.199,85.16,4.16964704]
[1771618536874,4.18963896,85.197,85.162,4.16964704]
[1771618537868,4.19109948,85.189,85.162,4.16964704]
[1771618538380,4.23974985,85.19,85.162,4.16964704]
[1771618538766,4.19109948,85.196,85.162,4.16964704]
[1771618538972,11.73777803,85.195,85.164,4.19774089]
[1771618539764,11.73723152,85.199,85.164,4.19774089]
[1771618540187,4.19251517,85.198,85.164,4.19774089]
[1771618540870,4.23974985,85.19,85.164,4.19774089]
[1771618541982,4.1939139,85.19,85.164,4.19774089]
[1771618542182,8.43366375,85.19,85.164,4.19774089]
[1771618543594,41.08125872,85.197,85.15,4.43974985]
[1771618543595,4.19527787,85.179,85.15,0.2]
[1771618544082,4.19527787,85.169,85.143,4.19774089]
[1771618544268,4.23974985,85.16,85.143,4.19774089]
[1771618544475,8.44958758,85.16,85.128,11.74693272]
[1771618544789,4.20983773,85.159,85.12,0.2]
[1771618544977,4.20983773,85.149,85.12,11.94798764]
[1771618545572,11.74425705,85.148,85.12,11.94798764]
[1771618546586,11.74425705,85.148,85.123,4.19774089]
[1771618546781,15.95409478,85.148,85.123,4.19774089]
[1771618546987,4.20983773,85.147,85.123,4.19774089]
[1771618548794,11.74453291,85.146,85.122,11.74784427]
[1771618549000,4.20983773,85.145,85.122,4.19774089]
[1771618549204,4.20983773,85.139,85.12,0.2]
[1771618549998,4.20983773,85.139,85.107,4.19774089]
[1771618550683,11.74701625,85.128,85.092,4.19774089]
[1771618550990,29.36133229,85.146,85.09,4.43974985]
[1771618550991,4.20983773,85.134,85.094,4.19774089]
[1771618551187,8.44958758,85.14,85.101,4.19774089]
[1771618551385,4.20983773,85.139,85.101,4.19774089]
[1771618552292,15.95450858,85.145,85.101,4.19774089]
[1771618552493,15.95375459,85.151,85.111,4.19774089]
[1771618552692,11.74391686,85.151,85.111,4.19774089]
[1771618552885,4.20983773,85.157,85.113,4.19774089]
[1771618555905,4.20983773,85.155,85.115,4.19774089]
[1771618557088,4.24366765,85.16,85.121,4.19774089]
[1771618557322,11.74274005,85.159,85.121,4.19774089]
[1771618557493,11.74274005,85.159,85.131,4.19774089]
[1771618557806,11.74274005,85.159,85.13,4.24366765]
[1771618557807,4.20983773,85.171,85.141,4.19774089]
[1771618557989,4.20983773,85.179,85.143,4.19774089]
[1771618558191,4.20983773,85.179,85.15,4.24366765]
[1771618558499,4.20983773,85.179,85.151,4.19774089]
[1771618558894,15.94982058,85.179,85.151,4.19774089]
[1771618559316,11.73998285,85.179,85.151,4.19774089]
[1771618559498,4.20983773,85.178,85.151,4.19774089]
[1771618561016,4.20983773,85.176,85.148,11.7441945]
[1771618561512,4.20983773,85.176,85.149,4.19774089]
[1771618562714,33.5579274,85.185,85.15,11.7439812]
[1771618562890,11.73860474,85.189,85.16,4.24366765]
[1771618563099,11.73860474,85.189,85.161,4.19774089]
[1771618565321,4.20983773,85.188,85.161,4.19774089]
[1771618565622,4.20983773,85.188,85.161,11.74235109]
[1771618565912,4.20983773,85.188,85.161,15.94009198]
[1771618567008,4.05231391,85.186,85.162,4.29072711]
[1771618569215,4.18799018,85.196,85.164,4.2823404]
[1771618570006,4.18799018,85.189,85.159,11.74270156]
[1771618570320,4.18799018,85.189,85.158,4.2823404]
[1771618570497,4.24366765,85.18,85.144,4.2823404]
[1771618570704,4.18799018,85.179,85.144,4.2823404]
[1771618570901,4.18799018,85.169,85.138,11.74555946]
[1771618571109,11.74149915,85.168,85.138,11.74555946]
[1771618571430,4.18799018,85.167,85.139,4.2823404]
[1771618573410,2.88067,104.75,85.116,4.2823404]
[1771618573411,4.18799018,85.149,85.116,4.2823404]
[1771618574318,4.18799018,85.159,85.121,4.2823404]
[1771618574516,11.74177488,85.166,85.131,4.2823404]
[1771618574907,11.74119403,85.171,85.141,4.2823404]
[1771618575119,4.18799018,85.174,85.141,4.2823404]
[1771618575323,4.18799018,85.174,85.143,4.2823404]
[1771618576629,4.18799018,85.189,85.151,4.2823404]
[1771618577003,11.73891317,85.187,85.151,4.2823404]
[1771618577517,4.18799018,85.189,85.161,4.2823404]
[1771618577921,15.92670955,85.189,85.161,4.2823404]
[1771618578120,15.92553229,85.197,85.161,4.2823404]
[1771618578632,4.18799018,85.196,85.161,4.2823404]
[1771618580834,4.18799018,85.194,85.163,4.2823404]
[1771618582626,4.18799018,85.189,85.163,4.2823404]
[1771618582807,4.18799018,85.187,85.158,11.74278547]
[1771618584329,4.18799018,85.179,85.142,4.2823404]
[1771618586929,4.18799018,85.169,85.136,11.74579877]
[1771618587117,4.18799018,85.169,85.136,16.02813917]
[1771618587305,4.18799018,85.169,85.137,4.2823404]
[1771618589227,4.24366765,85.17,85.138,11.74563649]
[1771618589228,4.18799018,85.167,85.138,11.74563649]
[1771618589931,4.18799018,85.167,85.139,4.2823404]
[1771618592926,11.74177488,85.166,85.141,4.2823404]
[1771618596434,11.74177488,85.166,85.143,4.2823404]
[1771618597639,16.09829198,85.166,85.143,4.2823404]
[1771618597936,11.74177488,85.166,85.143,4.2823404]
[1771618598121,16.09829198,85.166,85.143,4.2823404]
[1771618598449,4.3565171,85.165,85.145,4.34284478]
[1771618600929,11.74108558,85.171,85.145,4.34284478]
[1771618601136,11.74108558,85.171,85.147,4.34284478]
[1771618603152,4.3565171,85.17,85.13,4.24366765]
[1771618603443,4.3565171,85.169,85.132,4.34284478]
[1771618605844,4.3565171,85.167,85.134,4.34284478]
[1771618609029,11.74101723,85.172,85.141,4.34284478]
[1771618609943,11.74094772,85.172,85.141,4.34284478]
[1771618610153,4.3565171,85.179,85.141,4.34284478]
[1771618611753,11.74012068,85.178,85.143,4.34284478]
[1771618612045,3.69383402,85.201,85.142,11.74508468]
[1771618612046,11.73925473,85.185,85.151,4.34284478]
[1771618613553,11.73925473,85.185,85.161,4.34284478]
[1771618613880,4.3565171,85.188,85.163,4.34284478]
[1771618614045,11.73774255,85.196,85.163,4.34284478]
[1771618614351,11.73774255,85.196,85.171,4.34284478]
[1771618614933,4.3565171,85.205,85.171,4.34284478]
[1771618615250,11.7363591,85.206,85.181,4.34284478]
[1771618615942,4.3565171,85.206,85.181,4.34284478]
[1771618617060,11.73640044,85.205,85.181,4.34284478]
[1771618617356,4.3565171,85.204,85.181,4.34284478]
[1771618619357,4.3565171,85.199,85.168,4.34284478]
[1771618620565,4.3565171,85.179,85.142,4.34284478]
[1771618621561,4.23766143,85.18,85.141,41.1082792]
[1771618621562,4.3565171,85.177,85.144,4.34284478]
[1771618622537,4.3565171,85.169,85.137,4.34284478]
[1771618622760,4.3565171,85.149,85.106,4.34284478]
[1771618622957,3.69383402,85.171,85.108,4.34284478]
[1771618622958,4.3565171,85.139,85.108,4.34284478]
[1771618623640,4.3565171,85.139,85.111,4.34284478]
[1771618623860,16.10121434,85.145,85.111,4.34284478]
[1771618624241,0.14216157,85.181,85.109,41.12373543]
[1771618624242,4.3565171,85.152,85.112,0.42648471]
[1771618624441,4.3565171,85.168,85.121,4.34284478]
[1771618624657,11.74136129,85.169,85.121,4.34284478]
[1771618624658,4.3565171,85.159,85.121,4.34284478]
[1771618625363,4.3565171,85.159,85.109,41.12373543]
[1771618625364,4.3565171,85.149,85.11,4.34284478]
[1771618625544,4.3565171,85.149,85.111,4.34284478]
[1771618625743,4.23766143,85.15,85.113,4.34284478]
[1771618625744,4.3565171,85.147,85.113,4.34284478]
[1771618629671,4.05221776,85.145,85.115,4.29581216]
[1771618630462,11.74453291,85.146,85.093,4.29581216]
[1771618630463,4.05221776,85.129,85.093,4.29581216]
[1771618630969,4.23766143,85.13,85.093,4.29581216]
[1771618630970,4.05221776,85.119,85.093,4.29581216]
[1771618631866,4.05221776,85.117,85.09,0.2]
[1771618632871,4.05221776,85.117,85.092,4.29581216]
[1771618633770,11.74836263,85.119,85.092,4.29581216]
[1771618634075,11.74770626,85.123,85.094,4.29581216]
[1771618636060,11.74770626,85.123,85.096,4.29581216]
[1771618636979,15.79992402,85.123,85.096,4.29581216]
[1771618637481,4.05221776,85.122,85.096,4.29581216]
[1771618639381,4.05221776,85.119,85.09,0.2]
[1771618639686,4.05221776,85.119,85.091,4.29581216]
[1771618640582,4.05221776,85.119,85.092,4.29581216]
[1771618641365,11.74839634,85.118,85.092,4.29581216]
[1771618641690,15.8006141,85.118,85.092,4.29581216]
[1771618642181,4.05221776,85.117,85.092,4.29581216]
[1771618643560,4.05221776,85.109,85.09,0.2]
[1771618644201,4.05221776,85.109,85.079,4.29581216]
[1771618644361,4.05221776,85.099,85.071,4.29581216]
[1771618645284,4.05221776,85.099,85.07,0.2]
[1771618645475,4.05221776,85.099,85.07,4.49581216]
[1771618645667,58.73685397,85.126,85.071,11.75488709]
[1771618645668,4.05221776,85.097,85.071,11.75488709]
[1771618645864,4.05221776,85.097,85.072,4.29581216]
[1771618649786,4.05221776,85.104,85.074,4.29581216]
[1771618650088,4.05221776,85.117,85.081,4.29581216]
[1771618650976,4.05221776,85.109,85.075,4.29581216]
[1771618651480,4.05221776,85.099,85.075,4.29581216]
[1771618651666,4.05221776,85.099,85.07,0.2]
[1771618652390,4.05221776,85.097,85.07,0.2]
[1771618652685,4.05221776,85.089,85.056,4.29581216]
[1771618652890,4.05221776,85.079,85.056,4.29581216]
[1771618653391,4.05221776,85.079,85.05,16.25357485]
[1771618653585,4.05221776,85.079,85.05,11.95776269]
[1771618653887,4.05221776,85.079,85.051,4.29581216]
[1771618654086,4.05221776,85.077,85.051,4.29581216]
[1771618656085,4.05221776,85.075,85.051,4.29581216]
[1771618657104,4.05221776,85.069,85.035,4.29581216]
[1771618657803,41.13968686,85.076,85.035,4.29581216]
[1771618657804,4.32852101,85.059,85.035,4.29581216]
[1771618658292,4.32852101,85.057,85.035,4.29581216]
[1771618659797,4.32852101,85.057,85.028,15.72989828]
[1771618660099,4.32852101,85.049,85.02,0.2]
[1771618660403,4.32852101,85.039,85.02,0.2]
[1771618661777,4.23766143,85.05,85.022,3.96911489]
[1771618661982,4.23766143,85.05,85.021,11.76180002]
[1771618661983,4.23766143,85.07,85.026,3.96911489]
[1771618662200,4.23766143,85.07,85.03,3.96911489]
[1771618663601,11.75516345,85.069,85.032,3.96911489]
[1771618663794,16.08368446,85.069,85.032,3.96911489]
[1771618663998,4.23766143,85.06,85.032,3.96911489]
[1771618664486,8.56618244,85.06,85.032,3.96911489]
[1771618665990,16.08506646,85.059,85.033,11.76014018]
[1771618666307,4.32852101,85.059,85.034,3.96911489]
[1771618669084,4.32852101,85.059,85.036,3.96911489]
[1771618669488,11.75578524,85.065,85.036,3.96911489]
[1771618669802,16.08430625,85.065,85.036,3.96911489]
[1771618670187,4.32852101,85.064,85.036,3.96911489]
[1771618671103,4.32852101,85.064,85.037,11.759587]
[1771618671309,4.32852101,85.064,85.038,3.96911489]
[1771618671899,4.32852101,85.062,85.027,3.96911489]
[1771618672103,11.75599261,85.063,85.027,15.73005734]
[1771618672104,4.32852101,85.059,85.027,15.73005734]
[1771618672411,4.32852101,85.059,85.028,3.96911489]
[1771618674511,11.75668367,85.058,85.03,3.96911489]
[1771618677008,11.75668367,85.058,85.021,29.40446543]
[1771618677009,11.75668367,85.058,85.031,11.76041678]
[1771618677187,11.75668367,85.058,85.032,3.96911489]
[1771618679803,4.32852101,85.059,85.033,11.76014018]
[1771618679992,4.32852101,85.079,85.034,3.96911489]
[1771618681005,4.32852101,85.059,85.033,11.76014018]
[1771618681310,45.39038354,85.08,85.021,11.76180002]
[1771618681311,4.32852101,85.049,85.021,11.76180002]
[1771618681512,4.32852101,85.049,85.022,3.96911489]
[1771618682521,4.32852101,85.049,85.023,11.76152335]
[1771618682696,4.32852101,85.049,85.024,3.96911489]
[1771618683092,4.25263085,85.04,85.02,0.2]
[1771618683307,63.02084899,85.08,85.0,0.2]
[1771618683308,4.32852101,85.029,85.005,11.76401388]
[1771618683601,4.32852101,85.029,85.006,3.96911489]
[1771618683925,4.25263085,85.04,85.0,0.2]
[1771618683926,4.32852101,85.019,85.0,0.2]
[1771618684092,4.32852101,84.999,84.979,3.96911489]
[1771618684292,4.32852101,84.999,84.966,3.96911489]
[1771618684806,4.32852101,85.004,84.981,3.96911489]
[1771618686202,8.58115186,85.03,84.983,3.96911489]
[1771618686414,4.32852101,85.019,84.983,3.96911489]
[1771618687515,4.14654454,85.017,84.985,3.96569427]
[1771618687711,4.14654454,85.009,84.98,11.96743385]
[1771618688217,4.25263085,85.0,84.98,0.2]
[1771618688517,4.14654454,84.999,84.98,0.2]
[1771618691915,4.14654454,84.999,84.981,11.76733622]
[1771618692121,4.25263085,85.01,84.982,3.96569427]
[1771618693222,8.39917539,85.01,84.982,3.96569427]
[1771618693424,4.14654454,85.009,84.982,3.96569427]
[1771618694007,4.14654454,85.015,84.984,3.96569427]
[1771618694524,3.69383402,85.041,84.984,3.96569427]
[1771618694525,4.25263085,85.01,84.984,3.96569427]
[1771618694722,4.14654454,85.009,84.984,3.96569427]
[1771618695426,4.14654454,85.009,84.98,0.2]
[1771618695615,4.14654454,84.989,84.94,0.2]
[1771618695810,30.0,84.998,84.96,4.45263085]
[1771618696007,30.0,84.998,84.961,0.42648471]
[1771618696212,30.0,84.998,84.97,4.25263085]
[1771618697118,4.14654454,85.007,84.97,4.25263085]
[1771618697514,4.14654454,85.007,84.971,3.96569427]
[1771618698026,4.14654454,84.999,84.972,11.76858259]
[1771618699726,4.14654454,84.999,84.973,3.96569427]
[1771618700230,4.14654454,84.999,84.972,41.19003906]
[1771618700231,4.14654454,84.999,84.975,3.96569427]
[1771618700436,4.14654454,85.009,84.975,3.96569427]
[1771618700631,4.14654454,85.016,84.981,3.96569427]
[1771618702613,4.14654454,85.016,84.983,3.96569427]
[1771618704336,4.14654454,85.025,84.985,3.96569427]
[1771618704641,4.14654454,85.025,84.991,3.96569427]
[1771618704829,4.14654454,85.025,84.993,3.96569427]
[1771618705330,4.14654454,85.009,84.983,11.76698183]
[1771618705530,4.14654454,84.999,84.978,11.76768005]
[1771618706532,4.14654454,84.989,84.961,11.77010628]
[1771618706737,4.14654454,84.987,84.961,11.77010628]
[1771618707435,4.14654454,84.987,84.961,15.73580055]
[1771618707729,4.14654454,84.987,84.961,41.19537199]
[1771618707937,4.14654454,84.987,84.962,3.96569427]
[1771618708618,4.14654454,84.996,84.962,3.96569427]
[1771618709337,4.25263085,85.0,84.961,41.19537199]
[1771618709338,4.14654454,84.994,84.963,11.76982921]
[1771618709544,4.14654454,84.994,84.964,3.96569427]
[1771618711837,4.14654454,84.994,84.966,3.96569427]
[1771618712044,4.25263085,85.0,84.968,3.96569427]
[1771618712356,4.14654454,85.001,84.971,3.96569427]
[1771618714529,4.14654454,85.001,84.967,0.14216157]
[1771618714530,4.14654454,85.001,84.973,3.96569427]
[1771618714735,4.14654454,84.999,84.973,3.96569427]
[1771618714940,4.14654454,84.999,84.972,11.76858259]
[1771618715141,4.14654454,84.989,84.967,11.76915925]
[1771618716335,4.14654454,84.979,84.96,0.2]
[1771618716536,4.14654454,84.969,84.941,11.77287764]
[1771618716845,4.14654454,84.968,84.941,11.77287764]
[1771618717551,4.14654454,84.968,84.942,4.06228385]
[1771618717929,4.10461689,84.975,84.942,4.06228385]
[1771618719638,4.10461689,84.969,84.943,11.77260044]
[1771618719946,4.10461689,84.969,84.943,15.83488429]
[1771618720148,4.10461689,84.969,84.944,4.06228385]
[1771618721464,4.10461689,84.969,84.945,15.83460711]
[1771618723635,4.10461689,84.967,84.94,0.2]
[1771618724341,4.10461689,84.967,84.941,11.77287764]
[1771618725452,4.10461689,84.967,84.942,4.06228385]
[1771618726355,4.10461689,84.967,84.943,11.77260044]
[1771618726558,4.10461689,84.966,84.943,11.77260044]
[1771618727352,196.00577884,85.532,84.943,11.77260044]
[1771618727353,4.10461689,84.972,84.944,4.06228385]
[1771618728561,4.10461689,84.972,84.946,4.06228385]
[1771618730746,4.10461689,84.979,84.95,4.06228385]
[1771618730953,4.10461689,84.979,84.951,4.06228385]
[1771618733344,4.10461689,84.979,84.952,15.83363708]
[1771618733539,4.10461689,84.979,84.953,4.06228385]
[1771618734248,11.76595168,84.991,84.953,4.06228385]
[1771618734444,4.10461689,84.989,84.953,4.06228385]
[1771618735372,4.10461689,84.987,84.955,4.06228385]
[1771618736746,4.10461689,84.979,84.955,4.06228385]
[1771618736947,4.10461689,84.979,84.954,11.77107611]
[1771618737348,4.10461689,84.979,84.952,4.06228385]
[1771618739850,4.10461689,84.977,84.943,4.06228385]
[1771618740159,4.10461689,84.977,84.945,4.06228385]
[1771618740462,11.76775165,84.978,84.945,4.06228385]
[1771618740463,4.10461689,84.969,84.945,4.06228385]
[1771618744978,4.10461689,84.969,84.946,11.77218468]
[1771618745476,4.10461689,84.969,84.947,4.06228385]
[1771618746656,4.10461689,84.969,84.948,11.77190751]
[1771618746856,29.41648217,84.987,84.948,11.77190751]
[1771618746857,4.04203083,84.988,84.951,4.14020096]
[1771618748760,11.76650546,84.987,84.952,11.77135323]
[1771618748959,3.90382042,84.986,84.953,4.06620636]
[1771618751483,3.90382042,84.993,84.961,4.06620636]
[1771618751663,3.90382042,85.006,84.961,4.06620636]
[1771618753284,3.90382042,85.006,84.971,4.06620636]
[1771618753589,3.90382042,85.006,84.973,4.06620636]
[1771618754093,3.90382042,85.006,84.981,4.06620636]
[1771618754486,3.90382042,85.015,84.981,4.06620636]
[1771618756299,3.90382042,85.009,84.975,11.7681671]
[1771618756886,3.90382042,85.009,84.976,4.06620636]
[1771618759998,3.90382042,85.007,84.977,15.83409649]
[1771618764384,3.90382042,85.005,84.977,11.76789013]
[1771618764590,3.90382042,85.005,84.972,4.06620636]
[1771618764591,3.90382042,85.005,84.972,15.83465069]
[1771618764891,3.90382042,84.999,84.967,11.76916341]
[1771618765400,3.90382042,84.999,84.967,15.83536977]
[1771618766203,3.90382042,84.997,84.967,15.83536977]
[1771618766400,3.90382042,84.997,84.971,4.06620636]
[1771618766698,3.90382042,85.015,84.981,4.06620636]
[1771618766903,3.90382042,85.014,84.981,4.06620636]
[1771618767797,3.90382042,85.014,84.982,11.76719775]
[1771618768006,3.90382042,85.014,84.983,4.06620636]
[1771618772000,3.90382042,85.014,84.985,4.06620636]
[1771618772195,3.90382042,85.009,84.967,0.14216157]
[1771618772398,3.90382042,85.009,84.969,0.14216157]
[1771618772596,3.90382042,85.009,84.97,0.14216157]
[1771618773103,3.90382042,85.009,84.97,4.20836793]
[1771618775497,3.90382042,85.007,84.972,4.06620636]
[1771618776416,3.90382042,85.007,84.971,41.19052382]
[1771618776590,3.90382042,85.005,84.97,4.06620636]
[1771618777815,3.90382042,85.005,84.972,3.94963576]
[1771618779012,3.92064276,85.003,84.972,3.94963576]
[1771618780620,3.92064276,85.003,84.973,11.76844409]
[1771618782022,3.92064276,85.003,84.973,3.94963576]
[1771618783805,3.92064276,85.003,84.974,11.76830559]
[1771618784205,3.92064276,85.001,84.974,11.76830559]
[1771618784426,4.260559,85.0,84.974,11.76830559]
[1771618784603,3.92064276,84.999,84.974,11.76830559]
[1771618785224,3.92064276,85.004,84.975,3.94963576]
[1771618786406,3.92064276,85.004,84.977,3.94963576]
[1771618787001,3.92064276,85.004,84.98,4.260559]
[1771618787226,3.92064276,85.004,84.981,3.94963576]
[1771618789523,3.92064276,85.011,84.983,3.94963576]
[1771618789723,3.92064276,85.009,84.983,3.94963576]
[1771618791130,3.92064276,85.013,84.983,3.94963576]
[1771618791433,29.40234335,85.028,85.001,3.94963576]
[1771618791434,3.92064276,85.028,85.001,3.94963576]
[1771618791635,3.92064276,85.028,85.003,3.94963576]
[1771618791831,11.75940908,85.039,85.003,3.94963576]
[1771618792037,3.92064276,85.038,85.003,3.94963576]
[1771618794939,3.92064276,85.036,85.005,3.94963576]
[1771618797631,3.92064276,85.034,85.006,11.76387549]
[1771618799139,3.92064276,85.034,85.006,3.94963576]
[1771618800615,3.92064276,85.045,85.011,3.94963576]
[1771618801236,3.92064276,85.039,85.005,11.76389893]
[1771618801637,3.92064276,85.029,84.995,11.76539796]
[1771618801937,3.92064276,85.029,84.99,3.94963576]
[1771618802140,3.92064276,85.009,84.974,3.94963576]
[1771618802323,3.92064276,85.009,84.975,3.94963576]
[1771618803230,3.92064276,85.007,84.977,3.94963576]
[1771618804221,3.92064276,85.007,84.976,11.76802861]
[1771618804531,4.2553038,85.0,84.965,3.94963576]
[1771618804729,3.92064276,84.999,84.962,3.94963576]
[1771618804935,3.92064276,84.999,84.938,5.36086188]
[1771618804936,3.92064276,84.989,84.957,11.7706397]
[1771618805937,3.92064276,84.989,84.928,5.36086188]
[1771618805938,3.92064276,84.987,84.961,3.94963576]
[1771618806245,3.92064276,84.994,84.961,3.94963576]
[1771618809335,4.07815561,85.009,84.971,3.83303085]
[1771618812526,4.07815561,85.019,84.981,3.83303085]
[1771618814339,4.07815561,85.009,84.981,3.83303085]
[1771618814543,4.07815561,85.007,84.981,3.83303085]
[1771618815441,4.07815561,85.016,84.983,3.83303085]
[1771618815642,4.07815561,85.016,84.991,3.83303085]
[1771618816045,4.07815561,85.016,84.984,3.83303085]
[1771618816556,4.07815561,85.009,84.978,11.76775165]
[1771618818426,4.07815561,85.016,84.981,3.83303085]
[1771618818629,4.07815561,85.016,84.991,3.83303085]
[1771618819449,4.07815561,85.014,84.991,3.83303085]
[1771618819744,4.07815561,85.009,84.977,11.76781887]
[1771618820534,4.07815561,85.007,84.971,11.76872109]
[1771618820832,4.07815561,85.007,84.971,41.19052382]
[1771618821032,4.07815561,85.007,84.972,3.83303085]
[1771618823250,4.07815561,85.007,84.981,3.83303085]
[1771618823633,4.07815561,85.005,84.981,3.83303085]
[1771618825250,4.07815561,85.005,84.982,11.76719775]
[1771618826038,15.84145526,85.011,84.983,3.83303085]
[1771618826742,11.76252769,85.016,84.991,3.83303085]
[1771618826938,15.8406833,85.016,84.991,3.83303085]
[1771618827255,4.07815561,85.015,84.991,3.83303085]
[1771618827454,4.07815561,85.009,84.971,3.83303085]
[1771618828760,4.07815561,85.007,84.972,11.76858259]
[1771618828954,4.2553038,85.0,84.967,11.76921143]
[1771618829155,4.07815561,84.999,84.967,11.76921143]
[1771618832138,4.07815561,84.997,84.964,3.83303085]
[1771618833253,4.07815561,84.989,84.952,3.83303085]
[1771618834360,4.07815561,84.989,84.951,11.7714918]
[1771618834361,4.07815561,84.995,84.956,3.83303085]
[1771618834556,15.84279539,85.001,84.961,3.83303085]
[1771618834760,4.07815561,84.999,84.961,3.83303085]
[1771618834965,4.07815561,84.989,84.953,11.77121467]
[1771618835263,4.07815561,84.979,84.949,11.77173947]
[1771618836146,4.07815561,84.979,84.95,3.83303085]
[1771618837068,4.07815561,84.977,84.951,11.7714918]
[1771618839162,11.76759424,84.98,84.951,3.83705635]
[1771618840047,4.22765836,84.979,84.951,3.83705635]
[1771618841269,4.22765836,84.977,84.952,11.77135323]
[1771618841767,4.22765836,84.977,84.952,15.60840958]
[1771618842066,4.22765836,84.977,84.953,3.83705635]
[1771618843268,11.76729511,84.982,84.955,3.83705635]
[1771618843566,4.22765836,84.981,84.955,3.83705635]
[1771618844141,4.22765836,84.995,84.961,3.83705635]
[1771618845062,4.2553038,85.0,84.954,41.19876638]
[1771618845063,4.22765836,84.993,84.955,3.83705635]
[1771618845248,4.22765836,84.989,84.955,3.83705635]
[1771618845448,4.22765836,84.987,84.957,3.83705635]
[1771618845651,11.76572966,84.993,84.957,3.83705635]
[1771618846070,15.99338802,84.993,84.957,3.83705635]
[1771618846264,4.22765836,84.992,84.957,3.83705635]
[1771618846765,11.76484429,84.999,84.961,3.83705635]
[1771618846963,4.22765836,84.998,84.961,3.83705635]
[1771618849072,4.22765836,84.996,84.963,3.83705635]